fUSD/lending_fUSD_20260702
["ID","MTS","AMOUNT","RATE_DAILY","PERIOD"]
[426880378,1782977009000,500.0,0.0003709,120]
[426880383,1782977010000,500.0,0.0003709,120]
[426880382,1782977010000,181.02643412,0.0003709,120]
[426880381,1782977010000,500.0,0.0003709,120]
[426880384,1782977011000,500.0,0.0003709,120]
[426880385,1782977011000,500.0,0.0003709,120]
[426880386,1782977011000,500.0,0.0003709,120]
[426880387,1782977011000,500.0,0.0003709,120]
[426880389,1782977011000,500.0,0.0003709,120]
[426880388,1782977011000,528.38664609,0.0003709,120]
[426880395,1782977012000,500.0,0.0003709,120]
[426880394,1782977012000,500.0,0.0003709,120]
[426880393,1782977012000,500.0,0.0003709,120]
[426880392,1782977012000,500.0,0.0003709,120]
[426880391,1782977012000,500.0,0.0003709,120]
[426880390,1782977012000,500.0,0.0003709,120]
[426880396,1782977013000,500.0,0.0003709,120]
[426880398,1782977013000,500.0,0.0003709,120]
[426880397,1782977013000,500.0,0.0003709,120]
[426880400,1782977013000,500.0,0.0003709,120]
[426880403,1782977013000,500.0,0.0003709,120]
[426880401,1782977013000,500.0,0.0003709,120]
[426880402,1782977013000,500.0,0.0003709,120]
[426880404,1782977013000,500.0,0.0003709,120]
[426880399,1782977013000,500.0,0.0003709,120]
[426880405,1782977014000,532.44887314,0.0003709,120]
[426880406,1782977014000,329.95510808,0.0003709,120]
[426880407,1782977014000,268.37875481,0.0003709,120]
[426880408,1782977016000,259.58367119,0.0003709,120]
[426880410,1782977018000,500.0,0.0003709,120]
[426880409,1782977018000,175.50975769,0.0003709,120]
[426880411,1782977018000,170.7601327,0.0003709,120]
[426880412,1782977019000,157.63482643,0.0003709,120]
[426880414,1782977026000,500.0,0.0003709,120]
[426880413,1782977026000,500.0,0.0003709,120]
[426880420,1782977027000,500.0,0.0003709,120]
[426880418,1782977027000,500.0,0.0003709,120]
[426880417,1782977027000,500.0,0.0003709,120]
[426880416,1782977027000,500.0,0.0003709,120]
[426880415,1782977027000,500.0,0.0003709,120]
[426880419,1782977027000,500.0,0.0003709,120]
[426880422,1782977028000,173.40073051,0.0003709,120]
[426880421,1782977028000,500.0,0.0003709,120]
[426880423,1782977028000,500.0,0.0003709,120]
[426880424,1782977028000,500.0,0.0003709,120]
[426880426,1782977028000,500.0,0.0003709,120]
[426880427,1782977028000,500.0,0.0003709,120]
[426880425,1782977028000,500.0,0.0003709,120]
[426880429,1782977029000,500.0,0.0003709,120]
[426880428,1782977029000,485.65160095,0.0003709,120]
[426880434,1782977030000,354.91266897,0.0003709,120]
[426880433,1782977030000,167.87194894,0.0003709,120]
[426880432,1782977030000,435.20617536,0.0003709,120]
[426880431,1782977030000,500.0,0.0003709,120]
[426880430,1782977030000,151.0,0.0001866,2]
[426880435,1782977036000,1543.56,0.0003709,120]
[426880439,1782977037000,1543.56,0.0003709,120]
[426880438,1782977037000,1543.56,0.0003709,120]
[426880437,1782977037000,1543.56,0.0003709,120]
[426880436,1782977037000,1543.56,0.0003709,120]
[426880440,1782977038000,1543.56,0.0003709,120]
[426880442,1782977038000,1543.56,0.0003709,120]
[426880441,1782977038000,1543.56,0.0003709,120]
[426880445,1782977039000,1543.56,0.0003709,120]
[426880443,1782977039000,1543.56,0.0003709,120]
[426880446,1782977039000,1543.56,0.0003709,120]
[426880444,1782977039000,1543.56,0.0003709,120]
[426880447,1782977040000,1543.56,0.0003709,120]
[426880449,1782977040000,1543.56,0.0003709,120]
[426880448,1782977040000,1543.56,0.0003709,120]
[426880452,1782977041000,1543.56,0.0003709,120]
[426880451,1782977041000,1543.56,0.0003709,120]
[426880450,1782977041000,1543.56,0.0003709,120]
[426880456,1782977042000,1543.56,0.0003709,120]
[426880455,1782977042000,1543.56,0.0003709,120]
[426880454,1782977042000,1543.56,0.0003709,120]
[426880453,1782977042000,1543.56,0.0003709,120]
[426880459,1782977043000,1543.74658644,0.0003709,120]
[426880458,1782977043000,193.10023539,0.0003709,120]
[426880457,1782977043000,1543.56,0.0003709,120]
[426880460,1782977046000,383.04661884,0.0003709,120]
[426880462,1782977049000,150.77752366,0.0003709,120]
[426880461,1782977049000,596.7232663,0.0003709,120]
[426880463,1782977055000,500.0,0.0003709,120]
[426880464,1782977055000,500.0,0.0003709,120]
[426880465,1782977056000,500.0,0.0003709,120]
[426880466,1782977057000,316.66007605,0.0003709,120]
[426880467,1782977057000,500.0,0.0003709,120]
[426880468,1782977059000,589.67794971,0.0003709,120]
[426880470,1782977067000,500.0,0.0003709,120]
[426880469,1782977067000,500.0,0.0003709,120]
[426880473,1782977068000,500.0,0.00037092,120]
[426880472,1782977068000,500.0,0.0003709,120]
[426880471,1782977068000,500.0,0.0003709,120]
[426880477,1782977069000,500.0,0.00037092,120]
[426880476,1782977069000,500.0,0.00037092,120]
[426880474,1782977069000,230.8634074,0.00037092,120]
[426880475,1782977069000,500.0,0.00037092,120]
[426880478,1782977070000,500.0,0.00037092,120]
[426880480,1782977070000,500.0,0.00037092,120]
[426880479,1782977070000,500.0,0.00037092,120]
[426880481,1782977071000,500.0,0.00037092,120]
[426880482,1782977071000,353.50046217,0.00037092,120]
[426880483,1782977076000,204.02681738,0.00037092,120]
[426880486,1782977093000,500.0,0.00037092,120]
[426880485,1782977093000,500.0,0.00037092,120]
[426880488,1782977094000,500.0,0.00037092,120]
[426880489,1782977094000,577.01363566,0.00037092,120]
[426880487,1782977094000,607.80612604,0.00037092,120]
[426880490,1782977099000,487.0,0.00037092,120]
[426880493,1782977100000,571.5,0.00037092,120]
[426880492,1782977100000,487.0,0.00037092,120]
[426880491,1782977100000,487.0,0.00037092,120]
[426880494,1782977102000,196.46813641,0.00037092,120]
[426880495,1782977105000,150.39913967,0.00037092,120]
[426880497,1782977109000,500.0,0.00037092,120]
[426880500,1782977110000,500.0,0.00037092,120]
[426880499,1782977110000,500.0,0.00037092,120]
[426880498,1782977110000,500.0,0.00037092,120]
[426880502,1782977111000,212.54692641,0.00037092,120]
[426880501,1782977111000,500.0,0.00037092,120]
[426880503,1782977114000,600.35006224,0.00037092,120]
[426880504,1782977115000,500.0,0.00037092,120]
[426880505,1782977115000,171.68876683,0.00037092,120]
[426880506,1782977117000,238.56148698,0.00037092,120]
[426880507,1782977119000,192.65527933,0.00037092,120]
[426880508,1782977120000,500.0,0.00037092,120]
[426880509,1782977121000,381.95193458,0.00037092,120]
[426880511,1782977123000,500.0,0.00037092,120]
[426880510,1782977123000,500.0,0.00037092,120]
[426880514,1782977124000,365.23302213,0.00037092,120]
[426880512,1782977124000,500.0,0.00037092,120]
[426880513,1782977124000,500.0,0.00037092,120]
[426880515,1782977127000,228.00839362,0.00037092,120]
[426880516,1782977130000,500.0,0.00037092,120]
[426880517,1782977131000,573.4178267,0.00037092,120]
[426880519,1782977132000,500.0,0.00037092,120]
[426880518,1782977132000,500.0,0.00037092,120]
[426880521,1782977133000,596.73805957,0.00037092,120]
[426880520,1782977133000,500.0,0.00037092,120]
[426880522,1782977136000,199.22966753,0.00037092,120]
[426880523,1782977139000,53.63811134,0.00019274,2]
[426880524,1782977139000,296.38188866,0.00019274,2]
[426880526,1782977140000,205.27524286,0.00037092,120]
[426880525,1782977140000,639.25600921,0.00037092,120]
[426880527,1782977141000,500.0,0.00037092,120]
[426880529,1782977141000,500.0,0.00037092,120]
[426880528,1782977141000,500.0,0.00037092,120]
[426880533,1782977142000,615.45669262,0.00037092,120]
[426880532,1782977142000,500.0,0.00037092,120]
[426880531,1782977142000,500.0,0.00037092,120]
[426880530,1782977142000,500.0,0.00037092,120]
[426880537,1782977143000,500.0,0.00037092,120]
[426880536,1782977143000,500.0,0.00037092,120]
[426880535,1782977143000,500.0,0.00037092,120]
[426880534,1782977143000,500.0,0.00037092,120]
[426880539,1782977144000,500.0,0.00037092,120]
[426880538,1782977144000,500.0,0.00037092,120]
[426880543,1782977145000,500.0,0.00037092,120]
[426880542,1782977145000,500.0,0.00037092,120]
[426880541,1782977145000,500.0,0.00037092,120]
[426880540,1782977145000,500.0,0.00037092,120]
[426880544,1782977146000,500.0,0.00037092,120]
[426880546,1782977146000,500.0,0.00037092,120]
[426880545,1782977146000,500.0,0.00037092,120]
[426880547,1782977147000,402.47960572,0.00037092,120]
[426880549,1782977149000,500.0,0.0002891,120]
[426880548,1782977149000,500.0,0.00028098,120]
[426880553,1782977150000,500.0,0.00029999,120]
[426880552,1782977150000,500.0,0.00029899,120]
[426880551,1782977150000,500.0,0.00028999,120]
[426880550,1782977150000,500.0,0.0002894,120]
[426880554,1782977151000,500.0,0.00029999,120]
[426880555,1782977151000,500.0,0.00029999,120]
[426880556,1782977153000,3403.00042874,0.00037092,120]
[426880557,1782977161000,238.59780604,0.00037092,120]
[426880558,1782977164000,340.63575976,0.00037092,120]
[426880561,1782977168000,500.0,0.0002894,120]
[426880560,1782977168000,500.0,0.0002891,120]
[426880559,1782977168000,500.0,0.00028098,120]
[426880562,1782977169000,500.0,0.00028999,120]
[426880563,1782977171000,214.55187483,0.00037092,120]
[426880564,1782977175000,500.0,0.00037092,120]
[426880565,1782977175000,500.0,0.00037092,120]
[426880566,1782977175000,500.0,0.00037092,120]
[426880567,1782977176000,500.0,0.00037092,120]
[426880570,1782977176000,500.0,0.00037092,120]
[426880569,1782977176000,500.0,0.00037092,120]
[426880568,1782977176000,500.0,0.00037092,120]
[426880574,1782977177000,500.0,0.00037092,120]
[426880573,1782977177000,500.0,0.00037092,120]
[426880572,1782977177000,500.0,0.00037092,120]
[426880571,1782977177000,243.01561519,0.00037092,120]
[426880577,1782977179000,500.0,0.00037092,120]
[426880576,1782977179000,500.0,0.00037092,120]
[426880575,1782977179000,500.0,0.00037092,120]
[426880579,1782977180000,292.87661306,0.00037092,120]
[426880578,1782977180000,500.0,0.00037092,120]
[426880580,1782977183000,169.35593043,0.00037092,120]
[426880582,1782977191000,584.87283672,0.00037092,120]
[426880581,1782977191000,264.60415259,0.00037092,120]
[426880583,1782977195000,500.0,0.00037092,120]
[426880584,1782977196000,500.0,0.00037092,120]
[426880585,1782977196000,500.0,0.00037092,120]
[426880587,1782977196000,188.3352589,0.00037092,120]
[426880588,1782977196000,500.0,0.00037092,120]
[426880586,1782977196000,500.0,0.00037092,120]
[426880591,1782977197000,500.0,0.00037092,120]
[426880590,1782977197000,500.0,0.00037092,120]
[426880589,1782977197000,500.0,0.00037092,120]
[426880593,1782977198000,500.0,0.00037092,120]
[426880592,1782977198000,500.0,0.00037092,120]
[426880595,1782977198000,500.0,0.00037092,120]
[426880594,1782977198000,500.0,0.00037092,120]
[426880597,1782977199000,211.419426,0.00037092,120]
[426880596,1782977199000,500.0,0.00037092,120]
[426880598,1782977202000,500.0,0.00037092,120]
[426880599,1782977203000,347.80172441,0.00037092,120]
[426880601,1782977205000,477.75006636,0.00037092,120]
[426880600,1782977205000,500.0,0.00037092,120]
[426880602,1782977207000,231.42078655,0.00037092,120]
[426880603,1782977211000,200.5272531,0.00037092,120]
[426880604,1782977213000,155.27986333,0.00037092,120]
[426880607,1782977240000,500.0,0.00037092,120]
[426880605,1782977240000,500.0,0.00037092,120]
[426880608,1782977240000,500.0,0.00037092,120]
[426880606,1782977240000,500.0,0.00037092,120]
[426880609,1782977241000,500.0,0.00037092,120]
[426880611,1782977241000,500.0,0.00037092,120]
[426880610,1782977241000,500.0,0.00037092,120]
[426880615,1782977242000,500.0,0.00037092,120]
[426880614,1782977242000,500.0,0.00037092,120]
[426880613,1782977242000,500.0,0.00037092,120]
[426880612,1782977242000,500.0,0.00037092,120]
[426880618,1782977243000,500.0,0.00037092,120]
[426880617,1782977243000,500.0,0.00037092,120]
[426880616,1782977243000,500.0,0.00037092,120]
[426880620,1782977244000,392.71896286,0.00037092,120]
[426880619,1782977244000,500.0,0.00037092,120]
[426880621,1782977251000,271.13642569,0.00037092,120]
[426880622,1782977256000,198.55960041,0.00037092,120]
[426880625,1782977267000,632.12,0.00037092,120]
[426880624,1782977267000,632.12,0.00037092,120]
[426880623,1782977267000,632.12,0.00037092,120]
[426880626,1782977268000,632.12,0.00037092,120]
[426880627,1782977268000,632.12,0.00037092,120]
[426880628,1782977268000,632.12,0.00037092,120]
[426880629,1782977269000,632.12,0.00037092,120]
[426880631,1782977269000,632.12,0.00037092,120]
[426880630,1782977269000,632.12,0.00037092,120]
[426880637,1782977270000,144.42188866,0.00019785,2]
[426880636,1782977270000,55.57811134,0.00019785,2]
[426880635,1782977270000,632.12,0.00037092,120]
[426880634,1782977270000,632.12,0.00037092,120]
[426880633,1782977270000,632.12,0.00037092,120]
[426880632,1782977270000,632.12,0.00037092,120]
[426880641,1782977271000,632.12,0.00037092,120]
[426880640,1782977271000,632.12,0.00037092,120]
[426880639,1782977271000,632.12,0.00037092,120]
[426880638,1782977271000,632.12,0.00037092,120]
[426880644,1782977272000,632.12,0.00037092,120]
[426880643,1782977272000,632.12,0.00037092,120]
[426880642,1782977272000,632.12,0.00037092,120]
[426880645,1782977273000,632.12,0.00037092,120]
[426880646,1782977273000,632.12,0.00037092,120]
[426880648,1782977273000,632.34844279,0.00037092,120]
[426880647,1782977273000,632.12,0.00037092,120]
[426880649,1782977280000,500.0,0.00028098,120]
[426880651,1782977281000,579.69,0.00037092,120]
[426880650,1782977281000,631.55065149,0.0002891,120]
[426880657,1782977292000,-198.0,0.00020752,2]
[426880655,1782977292000,-1726.0913,0.00020548,2]
[426880656,1782977292000,-378.79,0.00020603,2]
[426880653,1782977292000,-287.5209598,0.00020503,2]
[426880654,1782977292000,-150.0,0.00020514,2]
[426880660,1782977293000,-305.53273009,0.00020957,2]
[426880659,1782977293000,-31.27242018,0.00020957,2]
[426880661,1782977293000,-198.0,0.00020958,2]
[426880664,1782977293000,-314.53,0.00021528,2]
[426880658,1782977293000,-558.26137711,0.00020957,2]
[426880663,1782977293000,-198.0,0.00021369,2]
[426880665,1782977293000,-198.0,0.00021574,2]
[426880666,1782977293000,-1917.873327,0.00021604,2]
[426880667,1782977293000,-752.86265484,0.00021604,2]
[426880662,1782977293000,-198.0,0.00021163,2]
[426880669,1782977313000,500.0,0.0002891,120]
[426880668,1782977313000,500.0,0.00028098,120]
[426880672,1782977314000,500.0,0.00029899,120]
[426880671,1782977314000,500.0,0.00028999,120]
[426880670,1782977314000,500.0,0.0002894,120]
[426880673,1782977315000,500.0,0.00029999,120]
[426880674,1782977366000,500.0,0.00037092,120]
[426880675,1782977367000,500.0,0.00037092,120]
[426880677,1782977367000,500.0,0.00037092,120]
[426880676,1782977367000,500.0,0.00037092,120]
[426880681,1782977368000,500.0,0.00037092,120]
[426880680,1782977368000,500.0,0.00037092,120]
[426880679,1782977368000,500.0,0.00037092,120]
[426880678,1782977368000,500.0,0.00037092,120]
[426880690,1782977369000,500.0,0.00037093,120]
[426880689,1782977369000,500.0,0.00037093,120]
[426880684,1782977369000,500.0,0.00037093,120]
[426880691,1782977370000,500.0,0.00037093,120]
[426880692,1782977370000,500.0,0.00037093,120]
[426880693,1782977370000,500.0,0.00037093,120]
[426880694,1782977371000,500.0,0.00037093,120]
[426880696,1782977371000,500.0,0.00037093,120]
[426880695,1782977371000,500.0,0.00037093,120]
[426880700,1782977372000,500.0,0.00037093,120]
[426880699,1782977372000,500.0,0.00037093,120]
[426880698,1782977372000,500.0,0.00037093,120]
[426880697,1782977372000,500.0,0.00037093,120]
[426880703,1782977373000,431.5937641,0.00037093,120]
[426880702,1782977373000,500.0,0.00037093,120]
[426880701,1782977373000,500.0,0.00037093,120]
[426880704,1782977383000,415.54,0.00030131,120]
[426880708,1782977406000,1339.87,0.00037093,120]
[426880707,1782977406000,1339.87,0.00037093,120]
[426880711,1782977407000,1339.87,0.00037093,120]
[426880710,1782977407000,1339.87,0.00037093,120]
[426880709,1782977407000,1339.87,0.00037093,120]
[426880713,1782977408000,500.0,0.00037093,120]
[426880712,1782977408000,1339.87,0.00037093,120]
[426880715,1782977408000,367.63,0.00037093,120]
[426880716,1782977408000,1339.87,0.00037093,120]
[426880717,1782977408000,1339.87,0.00037093,120]
[426880714,1782977408000,1339.87,0.00037093,120]
[426880720,1782977409000,1339.87,0.00037093,120]
[426880719,1782977409000,1339.87,0.00037093,120]
[426880718,1782977409000,1339.87,0.00037093,120]
[426880722,1782977410000,1339.87,0.00037093,120]
[426880721,1782977410000,1339.87,0.00037093,120]
[426880724,1782977410000,1339.87,0.00037093,120]
[426880723,1782977410000,1339.87,0.00037093,120]
[426880727,1782977411000,1339.87,0.00037093,120]
[426880726,1782977411000,1339.87,0.00037093,120]
[426880725,1782977411000,1339.87,0.00037093,120]
[426880730,1782977412000,1339.87,0.00037093,120]
[426880729,1782977412000,1339.87,0.00037093,120]
[426880728,1782977412000,1339.87,0.00037093,120]
[426880731,1782977413000,1339.87,0.00037093,120]
[426880733,1782977413000,182.63811134,0.00017645,2]
[426880732,1782977413000,1339.92229512,0.00037093,120]
[426880735,1782977413000,561.34188866,0.00017645,2]
[426880736,1782977413000,612.0,0.00018016,2]
[426880734,1782977413000,151.0,0.00017645,2]
[426880739,1782977425000,500.0,0.00037093,120]
[426880738,1782977425000,500.0,0.00037093,120]
[426880737,1782977425000,500.0,0.00037093,120]
[426880740,1782977426000,625.36172075,0.00037093,120]
[426880741,1782977429000,10000.0,0.00037093,120]
[426880742,1782977430000,10000.0,0.00037093,120]
[426880758,1782977432000,-9005.12121139,0.00022359,2]
[426880757,1782977432000,-198.0,0.00022191,2]
[426880759,1782977432000,-287.5209598,0.0002236,2]
[426880761,1782977432000,-5000.0,0.00022421,2]
[426880765,1782977432000,-150.0,0.00022459,2]
[426880769,1782977432000,-65547.02,0.0002246,2]
[426880766,1782977432000,-199.50142423,0.00022459,2]
[426880768,1782977432000,-500.0,0.00022459,2]
[426880763,1782977432000,-1600.0,0.00022458,2]
[426880770,1782977432000,-500.0,0.00022489,2]
[426880774,1782977432000,-14241.98,0.00022562,2]
[426880773,1782977432000,-57230.98,0.00022562,2]
[426880767,1782977432000,-218.96165643,0.00022459,2]
[426880762,1782977432000,-350.0,0.00022454,4]
[426880754,1782977432000,-151.733033,0.00021918,2]
[426880760,1782977432000,-198.0,0.00022396,2]
[426880756,1782977432000,-1852.42,0.0002212,2]
[426880755,1782977432000,-198.0,0.00021985,2]
[426880753,1782977432000,-496.74830462,0.00021918,2]
[426880750,1782977432000,-177.83671219,0.00021727,2]
[426880749,1782977432000,-735.62763285,0.00021604,2]
[426880752,1782977432000,-415.54,0.00021914,2]
[426880751,1782977432000,-198.0,0.0002178,2]
[426880748,1782977432000,10000.0,0.00037093,120]
[426880747,1782977432000,-295.86384799,0.00021604,2]
[426880746,1782977432000,-137.5209598,0.00021518,2]
[426880744,1782977432000,-287.5209598,0.00021432,2]
[426880745,1782977432000,-12.4790402,0.00021518,2]
[426880771,1782977432000,-1565.26,0.00022562,2]
[426880764,1782977432000,-1000.0,0.00022459,2]
[426880777,1782977432000,-9999.99,0.00022562,2]
[426880807,1782977432000,-905.0,0.000241,2]
[426880775,1782977432000,-150.99,0.00022562,2]
[426880772,1782977432000,-9471.29,0.00022562,2]
[426880806,1782977432000,-158.0,0.00024,2]
[426880804,1782977432000,-219.0,0.00024,2]
[426880803,1782977432000,-158.0,0.00024,2]
[426880802,1782977432000,-152.0,0.00024,2]
[426880799,1782977432000,-157.0,0.00024,2]
[426880800,1782977432000,-152.0,0.00024,2]
[426880798,1782977432000,-159.0,0.00024,2]
[426880795,1782977432000,-155.0,0.00024,2]
[426880801,1782977432000,-226.0,0.00024,2]
[426880797,1782977432000,-158.0,0.00024,2]
[426880796,1782977432000,-160.0,0.00024,2]
[426880794,1782977432000,-430.95509067,0.00023842,2]
[426880793,1782977432000,-520.30742631,0.00023769,2]
[426880791,1782977432000,-1884.0,0.00023311,2]
[426880805,1782977432000,-155.0,0.00024,2]
[426880786,1782977432000,-378.79,0.00023014,2]
[426880792,1782977432000,-250.0,0.00023575,2]
[426880780,1782977432000,-198.0,0.00022602,2]
[426880776,1782977432000,-9999.99,0.00022562,2]
[426880778,1782977432000,-9999.99,0.00022562,2]
[426880779,1782977432000,-436.82,0.00022562,2]
[426880782,1782977432000,-200.0,0.00022661,2]
[426880781,1782977432000,-2562.03,0.00022639,2]
[426880783,1782977432000,-301.0,0.00022724,2]
[426880784,1782977432000,-501.93,0.000229,2]
[426880789,1782977432000,-932.65,0.00023086,2]
[426880790,1782977432000,-967.83,0.00023086,2]
[426880787,1782977432000,-199.74492617,0.00023014,2]
[426880785,1782977432000,-510.49365357,0.00022941,2]
[426880788,1782977432000,-162.62,0.00023045,2]
[426880847,1782977433000,-152.0,0.00025,2]
[426880844,1782977433000,-158.0,0.00025,2]
[426880841,1782977433000,-152.61433426,0.00024967,2]
[426880845,1782977433000,-159.0,0.00025,2]
[426880840,1782977433000,-2500.0,0.00024899,2]
[426880838,1782977433000,-151.0,0.00024752,2]
[426880842,1782977433000,-159.0,0.00025,2]
[426880839,1782977433000,-151.0,0.00024752,2]
[426880837,1782977433000,-151.0,0.00024752,2]
[426880843,1782977433000,-166.0,0.00025,2]
[426880846,1782977433000,-164.0,0.00025,2]
[426880856,1782977433000,-500.0,0.00025398,2]
[426880848,1782977433000,-226.0,0.00025,2]
[426880851,1782977433000,-161.0,0.00025,2]
[426880850,1782977433000,-219.0,0.00025,2]
[426880854,1782977433000,-500.0,0.00025293,2]
[426880857,1782977433000,-1500.0,0.00025398,2]
[426880853,1782977433000,-350.0,0.00025211,6]
[426880852,1782977433000,-158.0,0.00025,2]
[426880855,1782977433000,-2000.0,0.00025388,2]
[426880858,1782977433000,-1500.0,0.00025398,2]
[426880859,1782977433000,-1500.0,0.00025398,2]
[426880835,1782977433000,-151.0,0.00024752,2]
[426880849,1782977433000,-158.0,0.00025,2]
[426880836,1782977433000,-151.0,0.00024752,2]
[426880821,1782977433000,-151.0,0.00024752,2]
[426880833,1782977433000,-151.0,0.00024752,2]
[426880808,1782977433000,-7963.84,0.00024174,2]
[426880809,1782977433000,-1129.35,0.00024174,2]
[426880812,1782977433000,-152.0,0.00024618,3]
[426880810,1782977433000,-160.56,0.00024174,7]
[426880811,1782977433000,-160.0,0.00024477,2]
[426880813,1782977433000,-415.54,0.00024653,2]
[426880814,1782977433000,-172.660213,0.00024658,2]
[426880815,1782977433000,-173.06,0.00024658,2]
[426880816,1782977433000,-1000.0,0.00024658,2]
[426880817,1782977433000,-176.3,0.00024658,2]
[426880860,1782977433000,-1500.0,0.00025398,2]
[426880834,1782977433000,-151.0,0.00024752,2]
[426880820,1782977433000,-151.0,0.00024752,2]
[426880822,1782977433000,-151.0,0.00024752,2]
[426880823,1782977433000,-151.0,0.00024752,2]
[426880825,1782977433000,-151.0,0.00024752,2]
[426880824,1782977433000,-151.0,0.00024752,2]
[426880826,1782977433000,-151.0,0.00024752,2]
[426880828,1782977433000,-151.0,0.00024752,2]
[426880827,1782977433000,-151.0,0.00024752,2]
[426880831,1782977433000,-151.0,0.00024752,2]
[426880832,1782977433000,-151.0,0.00024752,2]
[426880829,1782977433000,-151.0,0.00024752,2]
[426880830,1782977433000,-151.0,0.00024752,2]
[426880819,1782977433000,-163.62,0.00024658,2]
[426880861,1782977433000,-1500.0,0.00025398,2]
[426880818,1782977433000,-164.02,0.00024658,2]
[426880869,1782977433000,-515.34,0.00025497,2]
[426880893,1782977433000,-331.96678682,0.00026127,2]
[426880892,1782977433000,-311.50279061,0.00026127,2]
[426880895,1782977433000,-367.1676699,0.00026127,2]
[426880897,1782977433000,-404.42911552,0.00026134,2]
[426880898,1782977433000,-1283.47347249,0.0002622,2]
[426880901,1782977433000,-1283.47347249,0.00026494,2]
[426880900,1782977433000,-581.73724219,0.00026473,2]
[426880896,1782977433000,-436.72878747,0.00026134,2]
[426880899,1782977433000,-500.0,0.00026473,2]
[426880902,1782977433000,-199.5,0.00026518,2]
[426880903,1782977433000,-327.23777972,0.00026527,2]
[426880894,1782977433000,-341.98414306,0.00026127,2]
[426880904,1782977433000,-347.50729318,0.00026527,2]
[426880864,1782977433000,-1500.0,0.00025398,2]
[426880906,1782977433000,-152.0,0.00026565,4]
[426880905,1782977433000,-395.59397013,0.00026527,2]
[426880908,1782977433000,-1283.47347249,0.00026768,2]
[426880910,1782977433000,-213.85530518,0.00026781,2]
[426880912,1782977433000,-314.22038384,0.00026799,2]
[426880907,1782977433000,-13702.56187955,0.00026736,2]
[426880916,1782977433000,-158.0,0.00027,2]
[426880915,1782977433000,-28791.48592282,0.0002699,2]
[426880914,1782977433000,-198.0,0.00026914,2]
[426880913,1782977433000,-358.74990109,0.00026799,2]
[426880911,1782977433000,-456.10089585,0.00026798,2]
[426880888,1782977433000,-219.0,0.00026,2]
[426880909,1782977433000,-252.99336457,0.00026781,2]
[426880890,1782977433000,-422.26604,0.000261,2]
[426880887,1782977433000,-167.0,0.00026,2]